Cogmind - Beta 16.1 @@@ ROGUE MODE // 2026.03.17 @ 17:47:32 Player: Wyvern Result: Destroyed by as-79896 with Assembled Blade Performance ------------- Evolutions (0) 0 Regions Visited (2) 400 Robots Destroyed (14) 70 Value Destroyed (249) 249 Prototype IDs (2) 40 Alien Tech Used (0) 0 Bonus (0) 0 TOTAL SCORE: 759 Bonus ------- None Cogmind --------- Core Integrity 0/250 Matter 298/300 Energy 100/100 System Corruption 1% Temperature Cool (0) Movement Core (150) Ox2 Location -10/Mines Parts ------- > --- POWER (1) -------- (None) > --- PROPULSION (2) --- (None) > --- UTILITY (2) ------ Heat Sink Small Storage Unit > --- WEAPON (2) ------- Small Laser > --- INVENTORY (8) ---- Light Ion Engine Light Ion Engine Flight Unit Flight Unit Flight Unit Heat Sink Weight Redist. System Light Assault Rifle Peak State ------------ > --- POWER ------------ Ion Engine > --- PROPULSION ------- Aluminum Leg Aluminum Leg > --- UTILITY ---------- Heat Sink Small Storage Unit > --- WEAPON ----------- Small Laser Light Assault Rifle > --- INVENTORY -------- Light Ion Engine Light Ion Engine Light Treads Aluminum Leg Aluminum Leg Heat Sink Small Storage Unit Assault Rifle [Rating: 7] Favorites ----------- Power Ion Engine Engine Ion Engine Propulsion Aluminum Leg Leg Aluminum Leg Utility Small Storage Unit Device Heat Sink Storage Small Storage Unit Weapon EM Pulse Gun Energy Gun EM Pulse Gun Ballistic Gun Light Assault Rifle Ballistic Cannon Light Cannon Build | -11 -10 -10 ------- Run | Yrd Mat Min Slots Evolved . | . . . Power . | . . . Propulsion . | . . . Utility . | . . . Weapon . | . . . Parts Attached 15 | 5 9 1 Power 1 | . 1 . Engine 1 | . 1 . Core . | . . . Reactor . | . . . Propulsion 3 | 2 1 . Treads . | . . . Leg 3 | 2 1 . Wheel . | . . . Hover . | . . . Flight . | . . . Utility 2 | 1 1 . Device 1 | . 1 . Storage 1 | 1 . . Processor . | . . . Hackware . | . . . Protection . | . . . Artifact . | . . . Weapon 9 | 2 6 1 Energy Gun 5 | 1 3 1 Energy Cannon . | . . . Ballistic Gun 3 | 1 2 . Ballistic Cannon 1 | . 1 . Launcher . | . . . Special Weapon . | . . . Impact Weapon . | . . . Slashing Weapon . | . . . Piercing Weapon . | . . . Special Melee Weapon . | . . . Unidentified Prototypes . | . . . Parts Lost 5 | . . 5 Power 1 | . . 1 Propulsion 2 | . . 2 Utility . | . . . Weapon 2 | . . 2 Highest Loss Streak 5 | . . 5 To Critical Strikes . | . . . Average Backups 7 | 4 8 8 Power 1 | 1 2 2 Propulsion 2 | 2 2 3 Utility 1 | . 2 2 Weapon . | . 1 1 Tool/Special . | . . . Unused Backups 14 | . 7 7 Power 2 | . . 2 Propulsion 9 | . 6 3 Utility 3 | . 1 2 Weapon . | . . . Tool/Special . | . . . Average Slot Usage (%) 92 | . 91 100 Engine 10 | . 10 14 Leg 28 | . 28 28 Device 10 | . 10 14 Storage 14 | . 14 14 Energy Gun 17 | . 18 14 Ballistic Gun 4 | . 5 . Ballistic Cannon 5 | . 4 14 Peak Build Rating 7 | 5 7 7 Average Rating 6 | 4 6 6 On Entrance 4 | . 5 7 Avg Prop Armor Cover (%) . | . . . Naked Turns . | . . . Heaviest Build 16 | 7 16 16 Greatest Support 20 | 20 20 20 Greatest Overweight (x) 2 | 2 . . Average Overweight (x) . | . . . Largest Inventory Capacity 8 | 8 8 8 Average Capacity 7 | 7 8 8 Most Carried 8 | 8 8 8 Average Carried 7 | 4 7 8 Final Capacity 8 | 8 8 8 Final Carried 8 | 8 8 8 Class Distribution -------------------- 90% | Mutant 9% | Scavenger-Mutant Dominant Class ---------------- Mutant | -10/Materials Mutant | -10/Mines Resources | -11 -10 -10 ----------- Run | Yrd Mat Min Matter Collected 406 | 260 146 . Remotely . | . . . Salvage Created 406 | 59 324 23 Parts 24 | 1 23 . Haulers Intercepted 1 | . 1 . Recyclers Shooed 2 | . 2 . Parts Field Recycled . | . . . Retrieved Matter . | . . . Parts Self-Destructed . | . . . Prevented . | . . . Parts Restored . | . . . Kills | -11 -10 -10 ------- Run | Yrd Mat Min Combat Hostiles Destroyed 13 | . 11 2 Guns 7 | . 7 . Cannons 4 | . 2 2 AOE 2 | . 2 . Classes Destroyed 6 | 1 4 1 Worker 1 | . 1 . Hauler 1 | . 1 . Recycler 1 | 1 . . Swarmer 6 | . 6 . Grunt 5 | . 5 . Assembled 2 | . . 2 Best Kill Streak 3 | 1 3 2 Combat Bots Only 3 | . 3 2 Max Kills in Single Turn 2 | 1 2 1 Gunslinging . | . . . Exploded 1 | . 1 . Melee . | . . . Uniques/NPCs Destroyed . | . . . Combat | -11 -10 -10 -------- Run | Yrd Mat Min Hostile Shots Fired 96 | . 67 29 Missed 33 | . 23 10 Hits 63 | . 44 19 Melee 6 | . . 6 Projectile 57 | . 44 13 Critical Strikes 1 | . . 1 Damage Taken 835 | . 460 375 Core 255 | . 102 153 Absorbed by Shields . | . . . Core Remaining (%) 100 | 100 . . Volleys Fired 56 | 10 43 3 Largest 2 | 2 2 2 Hottest 80 | 60 80 70 Shots Fired 110 | 20 84 6 Gun 101 | 20 78 3 Cannon 9 | . 6 3 Launcher . | . . . Special . | . . . Kinetic 46 | 10 33 3 Thermal 37 | 10 25 2 Explosive . | . . . Electromagnetic 27 | . 26 1 Robot Hit Streak 8 | 6 8 2 Robot Miss Streak 9 | 2 9 3 Penetration Max . | . . . Secondary Targets 2 | . 2 . Max Gunslinging Chain 1 | . 1 . Shots Hit Robots 59 | 14 43 2 Core Hits 26 | 3 20 3 Critical Kills . | . . . Critical Parts Destroyed . | . . . Critical Strikes 1 | . 1 . Blast 1 | . 1 . Melee Attacks . | . . . Impact . | . . . Slashing . | . . . Piercing . | . . . Sneak Attacks . | . . . Combat Hostiles . | . . . Follow-up Attacks . | . . . Damage Inflicted 872 | 140 675 57 Guns 640 | 140 479 21 Cannons 87 | . 51 36 Explosions 145 | . 145 . Melee . | . . . Ramming . | . . . Kinetic 277 | 74 167 36 Thermal 389 | 66 302 21 Explosive . | . . . Electromagnetic 206 | . 206 . Impact . | . . . Slashing . | . . . Piercing . | . . . Highest Corruption 1 | . 1 1 Average Corruption 1 | . 1 1 Corruption Purged . | . . . Corruption Blocked . | . . . Overload Shots . | . . . Overflow Damage 6 | . 6 . Projectiles . | . . . Explosions 6 | . 6 . Melee . | . . . Knockbacks . | . . . Impact . | . . . Kinetic . | . . . Secondary . | . . . Self-Inflicted Damage 10 | . 10 . Shots 1 | . 1 . Rammed . | . . . Targets Rammed . | . . . Kicked . | . . . Crushed . | . . . Highest Temperature 32 | 20 32 8 Average Temperature 11 | 9 11 8 Received Heat Transfer 164 | . 144 20 Siege Activations . | . . . Martial Activations . | . . . Shielding Activations . | . . . Robots Disrupted . | . . . Combat Hostiles . | . . . Robots Corrupted . | . . . Combat Hostiles . | . . . Parts Fried 1 | . 1 . Impact Corruptions . | . . . Robots Melted . | . . . Combat Hostiles . | . . . Parts Melted . | . . . Heat Transferred 750 | 150 550 50 Parts Sabotaged . | . . . Parts Stolen . | . . . Parts Stripped . | . . . Power Chain Reactions 3 | . 3 . Alert | -11 -10 -10 ------- Run | Yrd Mat Min Maximum Alert Level . | . . . Low Security (%) 100 | 100 100 100 Level 1 . | . . . Level 2 . | . . . Level 3 . | . . . Level 4 . | . . . Level 5 . | . . . High Security . | . . . Max Security . | . . . Peak Influence 96 | 5 96 27 Initial 27 | . . 27 Average 32 | . 40 17 Influence Increases 331 | 5 326 . Destroy 0b10 Robot/C 220 | . 220 . Destroy 0b10 Robot/NC 15 | 5 10 . Destroy Leader 52 | . 52 . Successful Hack 20 | . 20 . Disable Machine 15 | . 15 . Destroy Structure 9 | . 9 . Influence Decreases 331 | 5 254 72 Entered New Map 45 | . . 45 Time Decay 222 | 5 207 10 Lost Part 10 | . . 10 Lost Ally 7 | . . 7 Purge Threat 47 | . 47 . Squads Dispatched 5 | . 5 . Investigation 3 | . 3 . Extermination . | . . . Reinforcement 2 | . 2 . Assault . | . . . Garrison . | . . . Intercept . | . . . Searches Triggered . | . . . Construction Impeded . | . . . Haulers Reinforced . | . . . Active Scanning Responses . | . . . Cargo Convoy Interrupts . | . . . Stealth | -11 -10 -10 --------- Run | Yrd Mat Min Distress Signals 1 | . 1 . Communications Jammed . | . . . Distress Signals . | . . . Times Spotted 37 | . 17 20 Peak Tracking Total 19 | . 4 19 Tactical Retreats 1 | . . 1 Traps | -11 -10 -10 ------- Run | Yrd Mat Min Traps Triggered 3 | . 3 . Indirectly . | . . . Trap Hack Attempts . | . . . Triggered . | . . . Disarmed . | . . . Reprogrammed . | . . . Reused . | . . . Traps Extracted . | . . . Installed . | . . . Triggered . | . . . Machines | -11 -10 -10 ---------- Run | Yrd Mat Min Machines Disabled 1 | . 1 . Max in Single Turn 1 | . 1 . Machines Repaired . | . . . Machines Dismantled . | . . . Machines Sabotaged . | . . . Overloaded Fab Kills . | . . . Hacking | -11 -10 -10 --------- Run | Yrd Mat Min Machines Accessed 4 | . 4 . Terminals 3 | . 3 . Fabricators . | . . . Repair Stations . | . . . Recycling Units 1 | . 1 . Scanalyzers . | . . . Garrison Access . | . . . Total Hacks 17 | . 17 . Successful 9 | . 9 . Failed 8 | . 8 . Catastrophic 1 | . 1 . Database Lockouts . | . . . Manual 1 | . 1 . Terminals 14 | . 14 . Fabricators . | . . . Repair Stations . | . . . Recycling Units 3 | . 3 . Scanalyzers . | . . . Garrison Access . | . . . Terminal Hacks 6 | . 6 . Prototype ID Bank 1 | . 1 . Level Access Points 1 | . 1 . Emergency Access Points 1 | . 1 . Alert Level 1 | . 1 . Unreport Threat 1 | . 1 . Assault Status 1 | . 1 . Fabricator Hacks . | . . . Repair Station Hacks . | . . . Recycling Unit Hacks 3 | . 3 . Report Inventory 1 | . 1 . Retrieve Matter 1 | . 1 . Retrieve Components 1 | . 1 . Scanalyzer . | . . . Garrison Access Hacks . | . . . Unauthorized Hacks . | . . . Terminals . | . . . Fabricators . | . . . Repair Stations . | . . . Recycling Units . | . . . Scanalyzers . | . . . Garrison Access . | . . . Data Cores Recovered . | . . . Used . | . . . Hacking Detections 3 | . 3 . Full Trace Events 1 | . 1 . Feedback Events . | . . . Feedback Blocked . | . . . Robot Schematics Acquired . | . . . Robots Built . | . . . Authchips . | . . . Time . | . . . Total Robot Build Rating . | . . . Part Schematics Acquired . | . . . Parts Built . | . . . Authchips . | . . . Time . | . . . Total Part Build Rating . | . . . Part Studies Acquired . | . . . Parts Repaired . | . . . Time . | . . . Parts Recycled . | . . . Recycled Matter . | . . . Retrieved Matter . | . . . Retrieved Components 3 | . 3 . Parts Scanalyzed . | . . . Part Schematics Acquired . | . . . Parts Damaged . | . . . Bothacking | -11 -10 -10 ------------ Run | Yrd Mat Min Used RIF Installer . | . . . Robots Hacked . | . . . Non-combat . | . . . Combat . | . . . Robot Hacks Applied . | . . . Relay Couplers Released . | . . . Fabnet Peak Effective % . | . . . Robots Rewired . | . . . Allies Hacked . | . . . Hacks Repelled . | . . . Allies | -11 -10 -10 -------- Run | Yrd Mat Min Total Allies 3 | . . 3 Largest Group 3 | . . 3 Highest-Rated Group 40 | . . 40 Highest-Rated Ally 16 | . . 16 Total Orders . | . . . Ally Attacks 15 | . . 15 Total Damage 207 | . . 207 Kills 5 | . . 5 Allies Corrupted . | . . . Allies Melted . | . . . Intel | -11 -10 -10 ------- Run | Yrd Mat Min Active Infowar (turns) . | . . . Robot Analysis Total . | . . . Derelict Logs Recovered . | . . . Drone Launches . | . . . Drone Recoveries . | . . . Exploration | -11 -10 -10 ------------- Run | Yrd Mat Min Turns Passed 695 | 109 550 36 Spaces Moved 410 | 55 334 21 Core 7 | 7 . . Treads . | . . . Legs 403 | 48 334 21 Wheels . | . . . Hover . | . . . Flight . | . . . Fastest Speed 50 | 50 120 120 Average Speed 119 | 116 120 120 Slowest Speed 150 | 150 120 120 Overloaded Moves . | . . . Propulsion Burnouts . | . . . Robots Hopped . | . . . Potential Cave-ins . | . . . Cave-ins Triggered . | . . . Exploration Rate (%) 19 | 5 50 4 Regions Visited 2 Branch Regions 1 Pre-discovered Areas . | . . . Known Exits Taken . | . . . Unknown Exits Taken 2 | 1 1 . Scrap Searched . | . . . Spaces Dug . | . . . Terrain Destroyed 7 | . 7 . Melee . | . . . Projectile . | . . . AOE 7 | . 7 . Terrain Rammed . | . . . Walls Destroyed . | . . . Machines Disabled . | . . . Actions | -11 -10 -10 --------- Run | Yrd Mat Min Total 515 | 82 408 25 Wait . | . . . Move 408 | 54 333 21 Hop . | . . . Pick Up 20 | 13 7 . Fast Attach 8 | . 7 1 Attach 5 | 5 . . Detach 1 | . 1 . Swap 3 | . 3 . Drop 14 | . 14 . Fire 56 | 10 43 3 Melee . | . . . Ram . | . . . Kick . | . . . Crush . | . . . Escape Stasis . | . . . Rewire . | . . . Trap . | . . . Miscellaneous . | . . . Route ------- -11/Scrapyard -10/Materials (discovered 4 exits: *Mat x3 / [*Min]) -10/Mines History --------- Turn | Location | Event 23 | -11/Scrapyard | Discovered new exit (range 15) 110 | -11/Scrapyard | Entered Materials 114 | -10/Materials | Identified exit to Materials 347 | -10/Materials | Discovered new exit (range 15) 605 | -10/Materials | Build established: Mutant 660 | -10/Materials | Entered Mines 661 | -10/Mines | Assembled infested the area 677 | -10/Mines | Assisted by bots powering up and referring to "LRC-V3" 683 | -10/Mines | Core integrity fell below 50% 696 | -10/Mines | Core integrity fell below 20% 696 | -10/Mines | Destroyed by as-79896 with Assembled Blade Last Messages --------------- command?" as-03957 destroyed. Mercenary 1a suffers critical hit (Destroy). as-33129 destroyed. EM Pulse Gun destroyed. Mercenary 1a Ion Engine severed. as-74333 suffers critical hit (Burn). as-74333 destroyed. Destroyed Asb. Hover Unit. Mercenary 1a destroyed. as-96852 destroyed. as-02113 destroyed. Trooper 1b destroyed. Acquired Sml. Laser. Trooper 1a destroyed. Aluminum Leg destroyed. Ion Engine destroyed. as-47539 destroyed. Aluminum Leg destroyed. Lgt. Cannon destroyed. Map ----- +----------------------------------------------------+ | | | | | | | | | | | | | | | | | | | | | | | | | | | | | | | | | | | | | | | | | | | | | | | ?????????????????????????????????????????????????? | | ????????????????????????############?????????????? | | ????????????????????????#@a=%a ##????????????? | | ????????????????????????#a%%aa #????????????? | | ????????????????????????#%*a*aa #????????????? | | ????????????????????????####=a a #????????????? | | ??????????????????????????# #????????????? | | ??????????????????????????# a ##????????????? | | ??????????????????????????## ## #?????????????? | | ???????????????????????????####### #?????????????? | | ?????????????????????????????????# #?????????????? | | ?????????????????????????????????# #?????????????? | | ?????????????????????????????????# #?????????????? | | ?????????????????????????????????# #?????????????? | | ????????????????????????????????? #?????????????? | | ????????????????????????????????? #?????????????? | | ????????????????????????????????? ??????????????? | | ?????????????????????????????????" ??????????????? | | ????????????????????????????????? ??????????????? | | ????????????????????????????????? ??????????????? | | ????????????????????????????????? ??????????????? | | ?????????????????????????????????##??????????????? | | ?????????????????????????????????????????????????? | | ?????????????????????????????????????????????????? | | ?????????????????????????????????????????????????? | | ?????????????????????????????????????????????????? | | ?????????????????????????????????????????????????? | +----------------------------------------------------+ Best States ------------- Heat Dissipation 35 Energy Generation 10 Energy Capacity 250 Matter Stores 300 Matter Capacity 300 Sight Range 16 Terrain Scan Density 10 Evasion (%) 55 Item Schematics ----------------- None Robot Schematics ------------------ None Fabricated ------------ Nothing Repaired ---------- Nothing Studied --------- None Alien Tech Used ----------------- None Achievements -------------- None Challenges ------------ None Game ------ Seed AntimatterAntigravPurifier Manual? 0 Play Time 00:10:06 Cumulative 7.9 hours Start 2026.03.17 @ 17:38:09 End 2026.03.17 @ 17:47:32 Sessions 1 Manual Loads 0 Difficulty Rogue Special Mode None Game No. 13 Rogue 13 Adventurer 0 Explorer 0 Win Type - Total 0 Types 0/0/0/0/0/0/0/0/0/0 Lore% 8 Gallery% 11 Achievement% 11 Wizard Run 0 Options --------- Layout 1 ASCII 0 Keyboard 0 Movement Mouse Keybinds 0 Fullscreen 1 Font 32/SmallcapsGlow Map View 50x35 Zoom Use 0% Tactical HUD 0 Map Filters NONE Filters NONE Steam 0 RUN: e4a334e6-10d6-4b97-8612-31f0662585e5